Cogmind - Beta 16 @@@ ROGUE MODE // 2025.10.26 @ 08:25:22 Player: shapeshifter Result: Destroyed by S-43 Plague with Heavy Machine Gun Performance ------------- Evolutions (7) 3500 Regions Visited (28) 5600 Robots Destroyed (205) 1025 Value Destroyed (7309) 7309 Prototype IDs (79) 1580 Alien Tech Used (0) 0 Bonus (4856) 4856 TOTAL SCORE: 23870 Bonus ------- High Alert Combat Kills 528 Follower Combat Kills 2011 Network Hubs Disabled 400 Met Data Miner 300 Met Imprinter 300 Was Imprinted 300 Met Warlord at Base 500 MAIN.C Attacked Warlord 500 Warlord Defense Kills 482 Friendly Fire -465 Cogmind --------- Core Integrity 0/1300 Matter 280/300 Energy 60/100 System Corruption 7% Temperature Cool (0) Movement Core (50) Location -3/Armory Parts ------- > --- POWER (2) -------- (None) > --- PROPULSION (6) --- (None) > --- UTILITY (9) ------ Transport Network Coupler Improved Salvage Targeting Computer Improved Salvage Targeting Computer > --- WEAPON (4) ------- (None) > --- INVENTORY (5) ---- Vortex Chain Reactor Hacking Drone Bay (1/1) Enhanced Force Lance Peak State ------------ > --- POWER ------------ Light Quantum Reactor Light Quantum Reactor > --- PROPULSION ------- Antigrav System Zionite Glidesys II Cooled Antigrav System Cooled Antigrav System Combat Linear Gravjet Combat Linear Gravjet > --- UTILITY ---------- Experimental Heat Sink Large Storage Unit Improved Salvage Targeting Computer Improved Salvage Targeting Computer Advanced Target Analyzer Experimental Armor Integrity Analyzer Experimental Cloaking Device Makeshift Ablative Armor Experimental Focal Shield > --- WEAPON ----------- Matter Neutralizer Railgun Makeshift Axe > --- INVENTORY -------- Zionite Heavy DM Reactor Vortex Chain Reactor Combat Linear Gravjet Experimental Coolant Injector Zionite Biocell Advanced Force Field Advanced Remote Force Field Hacking Drone Bay Vortex Driver Thermoblaster Improved Remote Datajack [Rating: 153] Favorites ----------- Power Micro Fission Core Engine Light Ion Engine Power Core Micro Fission Core Reactor Zionite Light DM Reactor Propulsion Light Treads Treads Light Treads Leg Carbon-fiber Leg Wheel Armored Wheel Hover Unit Antigrav System Flight Unit VTOL Module Utility Advanced Targeting Computer Device Improved Sensor Array Storage Medium Storage Unit Processor Advanced Targeting Computer Hackware Hacking Suite Protection Improved Light Armor Plating Weapon Improved EM Shotgun Energy Gun Improved EM Shotgun Energy Cannon EM Pulse Cannon Ballistic Gun Hypervelocity Gauss Rifle Ballistic Cannon Hardcell Cannon Launcher Rocket Launcher Special Weapon Remote Datajack Slashing Weapon Makeshift Axe Piercing Weapon Heavy Pick Build | -11 -10 -10 -10 -9 -8 -7 -7 -7 -7 -7 -7 -6 -6 -6 -6 -6 -5 -5 -5 -5 -5 -5 -4 -4 -4 -3 -3 -3 ------- Run | Yrd Mat Min Exi Min Mat Fac Was Fac Low Low Dat Pro Fac Low Low Zio Pro Fac Ext Cet Arc Hub Fac Upp War Pro Res Arm Slots Evolved 14 | . . . . . 4 2 . . . . . . 2 . . . . 2 . . . . 2 . . . 2 . Power 1 | . . . . . . . . . . . . . 1 . . . . . . . . . . . . . . . Propulsion 4 | . . . . . 1 . . . . . . . 1 . . . . 1 . . . . 1 . . . . . Utility 7 | . . . . . 2 2 . . . . . . . . . . . 1 . . . . . . . . 2 . Weapon 2 | . . . . . 1 . . . . . . . . . . . . . . . . . 1 . . . . . Parts Attached 236 | 7 3 3 2 4 24 32 1 8 17 . . 1 12 2 2 12 1 21 6 3 7 9 16 . 23 5 14 1 Power 24 | 1 . 1 . . 3 2 . . 2 . . . 1 1 . 1 . 2 1 . . 1 2 . 3 . 3 . Engine 7 | 1 . 1 . . 1 . . . . . . . . . . 1 . . . . . . . . 1 . 2 . Core 10 | . . . . . 2 2 . . 2 . . . 1 1 . . . 1 . . . . 1 . . . . . Reactor 7 | . . . . . . . . . . . . . . . . . . 1 1 . . 1 1 . 2 . 1 . Propulsion 73 | 2 1 1 1 2 5 8 . 3 4 . . . 4 1 1 4 . 4 1 . 6 6 8 . 7 1 3 . Treads 11 | 2 1 1 1 . 5 . . . . . . . . . . . . . . . . 1 . . . . . . Leg 7 | . . . . . . . . 1 . . . . . . 1 4 . 1 . . . . . . . . . . Wheel 12 | . . . . 2 . 8 . 2 . . . . . . . . . . . . . . . . . . . . Hover 39 | . . . . . . . . . 4 . . . 4 1 . . . 3 1 . 6 5 5 . 6 1 3 . Flight 4 | . . . . . . . . . . . . . . . . . . . . . . . 3 . 1 . . . Utility 79 | 2 1 . 1 1 9 11 . 3 8 . . 1 3 . . 6 1 10 1 1 . 1 4 . 9 1 4 1 Device 34 | 1 1 . . 1 1 6 . 1 5 . . . 2 . . 2 . 3 . . . 1 4 . 3 1 2 . Storage 9 | 1 . . 1 . 1 . . . . . . 1 . . . 1 . 1 1 . . . . . 1 . . 1 Processor 19 | . . . . . 1 1 . 1 3 . . . 1 . . 2 1 4 . . . . . . 4 . 1 . Hackware 3 | . . . . . 1 . . . . . . . . . . 1 . 1 . . . . . . . . . . Protection 14 | . . . . . 5 4 . 1 . . . . . . . . . 1 . 1 . . . . 1 . 1 . Artifact . | . . . . . . . . . . . . . . . . . . . . . . . . . . . . . Weapon 60 | 2 1 1 . 1 7 11 1 2 3 . . . 4 . 1 1 . 5 3 2 1 1 2 . 4 3 4 . Energy Gun 18 | . . . . 1 6 7 . 1 . . . . . . . . . 1 . . . . 2 . . . . . Energy Cannon 6 | . . . . . 1 1 . . . . . . 1 . . . . . . . . . . . 1 1 1 . Ballistic Gun 17 | 2 . . . . . . . 1 3 . . . 2 . 1 . . 3 . 2 1 1 . . . 1 . . Ballistic Cannon 1 | . . . . . . . . . . . . . . . . . . . . . . . . . . 1 . . Launcher 9 | . 1 1 . . . 2 . . . . . . . . . . . 1 2 . . . . . . . 2 . Special Weapon 4 | . . . . . . 1 1 . . . . . . . . . . . 1 . . . . . 1 . . . Impact Weapon . | . . . . . . . . . . . . . . . . . . . . . . . . . . . . . Slashing Weapon 2 | . . . . . . . . . . . . . . . . . . . . . . . . . 2 . . . Piercing Weapon 3 | . . . . . . . . . . . . . 1 . . 1 . . . . . . . . . . 1 . Special Melee Weapon . | . . . . . . . . . . . . . . . . . . . . . . . . . . . . . Unidentified Prototypes 31 | . . . . . 2 1 . . . . . 1 . . . 2 . 10 2 2 . . 2 . 7 . 2 . Corrupted Parts 1 | . . . . . . . . . . . . 1 . . . . . . . . . . . . . . . . System Corruption 3 | . . . . . . . . . . . . 3 . . . . . . . . . . . . . . . . Parts Lost 114 | . . . . 5 2 26 5 . . . . . 7 . 6 . . 1 1 1 2 18 12 . 1 1 17 9 Power 11 | . . . . 1 . 1 . . . . . . . . . . . . . . . 2 1 . . . 4 2 Propulsion 46 | . . . . 2 . 8 2 . . . . . 4 . 3 . . . 1 . 2 8 5 . 1 1 7 2 Utility 30 | . . . . . 1 8 2 . . . . . . . 2 . . 1 . . . 3 5 . . . 4 4 Weapon 27 | . . . . 2 1 9 1 . . . . . 3 . 1 . . . . 1 . 5 1 . . . 2 1 Highest Loss Streak 12 | . . . . 5 2 7 5 . . . . . 6 . 2 . . 1 1 1 2 8 11 . 1 1 8 12 To Critical Strikes 2 | . . . . . . . . . . . . . . . 1 . . . . . . . . . . . . 1 Average Backups 9 | 3 7 7 8 8 16 15 13 3 4 5 5 5 4 5 4 6 9 9 9 10 9 8 4 5 11 13 11 6 Power . | . 1 . . . 2 1 1 . . 1 1 1 . . . . . . 1 1 1 . . 1 2 2 1 1 Propulsion 1 | 1 2 2 2 2 . . . . . 3 3 2 1 3 3 1 1 . . . . 1 . . . 1 . . Utility 4 | . . . 1 2 5 5 3 2 3 . . . 1 1 . 3 7 7 5 5 5 5 3 4 6 6 5 2 Weapon 3 | . 4 4 4 4 8 7 8 . . 1 1 1 1 1 1 2 1 1 2 2 2 1 . . 1 2 3 1 Tool/Special . | . . . . . . . . . . . . . . . . . . . . . . . . . . . . . Unused Backups 45 | . 3 . . 1 6 2 13 . 1 . . . 1 . 2 2 . 3 2 1 1 . 1 . 1 . . 5 Power 6 | . . . . . . 1 2 . . . . . . . . . . . . 1 . . . . . . . 2 Propulsion 2 | . . . . 1 . . . . . . . . . . 1 . . . . . . . . . . . . . Utility 19 | . 1 . . . 2 . 3 . 1 . . . 1 . 1 1 . 3 1 . 1 . 1 . 1 . . 2 Weapon 17 | . 2 . . . 4 1 8 . . . . . . . . 1 . . . . . . . . . . . 1 Tool/Special 1 | . . . . . . . . . . . . . . . . . . . 1 . . . . . . . . . Average Slot Usage (%) 84 | . 100 100 100 97 85 73 59 52 72 100 80 100 96 94 78 89 100 94 96 93 93 79 34 15 65 87 76 30 Engine 3 | . 14 14 14 13 1 . . . . . . . . . . 2 6 2 . . . . . . 6 . 3 1 Core 4 | . . . . . 7 6 4 . 2 7 7 7 12 13 9 6 6 5 5 5 5 2 1 . . . . . Treads 7 | . 28 28 28 26 17 6 . . . . . . . . . . . . . . . . . . . . . . Leg 4 | . . . . . . . . 6 5 . . . . . . 22 26 14 . . . . . . . . . . Wheel 1 | . . . . 1 2 3 16 10 11 . . . . . . . . . . . . . . . . . . . Hover 8 | . . . . . . . . . 5 23 23 23 24 21 15 1 . 9 25 23 22 21 7 5 19 29 21 3 Device 9 | . 14 14 14 14 1 9 10 4 5 15 15 14 6 20 16 6 5 5 11 11 11 7 9 10 8 10 12 4 Storage 6 | . 14 14 14 14 9 7 5 . . . . . 5 . . 5 6 5 5 5 5 4 . . 3 5 4 1 Processor 14 | . . . . . 7 6 5 5 11 30 30 30 25 20 20 24 26 28 23 23 23 22 9 . 14 21 19 16 Hackware 1 | . . . . . 7 3 . . . . . . . . . 1 . . . . . . . . . . . . Protection 2 | . . . . . 8 8 . 5 5 . . . . . . . . . . . . . . . 2 . 1 . Energy Gun 4 | . . . . 8 19 16 13 4 5 . . . . . . . . . . . . . 1 . 2 . . . Ballistic Gun 9 | . 27 16 14 12 . . . 5 11 23 3 23 17 13 9 9 13 15 16 16 17 12 . . . 2 1 . Launcher 1 | . . 11 14 6 . . . . . . . . . . . . . . . . . . . . . . . . Piercing Weapon 1 | . . . . . . . . . . . . . . . 4 6 6 1 . . . . . . . . 1 2 Peak Build Rating 153 | 7 8 10 11 12 33 41 36 51 66 66 66 70 82 69 70 70 72 97 98 100 98 100 94 22 134 135 153 82 Average Rating 52 | 5 7 9 10 10 26 31 24 40 52 66 53 66 77 65 53 59 70 83 94 94 93 79 40 22 79 131 116 37 On Entrance 52 | . 7 8 10 11 10 33 33 7 51 66 66 66 70 64 68 34 70 70 92 92 97 94 18 22 22 134 135 81 Avg Prop Armor Cover (%) 4 | . . . . . . . . 1 1 . . . 4 . . 4 . . . . . . 8 . . . 11 . Naked Turns 10 | . . . . . . . 10 . . . . . . . . . . . . . . . . . . . . . Heaviest Build 80 | 12 14 15 20 20 61 78 63 57 63 27 27 28 33 37 37 41 41 47 44 44 44 44 28 2 71 71 80 40 Greatest Support 88 | 40 40 40 40 40 60 60 36 24 33 33 33 33 44 45 45 68 68 88 63 49 53 60 46 9 81 81 81 40 Greatest Overweight (x) 20 | . . . . . 2 20 2 2 2 . . . . . 1 . . . . . 1 1 1 . 1 . 2 2 Average Overweight (x) . | . . . . . 1 2 . . 1 . . . . . . . . . . . . . . . . . . . Largest Inventory Capacity 20 | 8 8 8 10 10 20 20 20 5 5 5 5 5 5 5 5 10 10 10 10 10 10 10 5 5 15 15 15 15 Average Capacity 11 | 7 8 8 9 10 19 20 17 5 5 5 5 5 5 5 5 9 10 10 10 10 10 9 5 5 12 15 15 6 Most Carried 20 | 6 8 8 10 10 20 19 20 5 5 5 5 5 5 5 5 10 10 10 10 10 10 10 5 5 15 15 15 15 Average Carried 10 | 3 7 7 9 9 17 16 15 4 4 5 5 5 4 5 4 7 9 9 9 9 9 8 4 5 11 14 12 6 Final Capacity 20 | 8 8 8 10 10 20 20 5 5 5 5 5 5 5 5 5 10 10 10 10 10 10 5 5 5 15 15 15 5 Final Carried 20 | 6 8 8 10 7 20 16 5 5 5 5 5 5 5 5 5 10 10 10 10 10 10 5 5 5 15 14 15 4 Class Distribution -------------------- 27% | Mutant 18% | Scavenger-Gunner 15% | Scavenger-Mutant 8% | Derelict-Assassin 6% | Tank 4% | Scavenger-Assassin 4% | Messiah-Scout 3% | Gunner 3% | Commander-Mutant Dominant Class ---------------- Mutant | -10/Materials Mutant | -10/Mines Commander-Mutant | -10/Exiles Scavenger-Mutant | -9/Mines Scavenger-Gunner | -8/Materials Mutant | -7/Factory Scavenger-Skirmisher | -7/Waste Tank | -7/Factory Tank | -7/Lower Caves Scavenger-Gunner | -7/Lower Caves Scavenger-Mutant | -7/Data Miner Scavenger-Gunner | -6/Proximity Caves Scavenger-Gunner | -6/Factory Scavenger-Gunner | -6/Lower Caves Scavenger-Mutant | -6/Lower Caves Scavenger-Assassin | -6/Zion Derelict-Assassin | -5/Proximity Caves Derelict-Gunner | -5/Factory Messiah-Scout | -5/Extension Messiah-Scout | -5/Cetus Scavenger-Scout | -5/Archives Scavenger-Gunner | -5/Hub_04(d) Mutant | -4/Factory Mutant | -4/Upper Caves Mutant | -4/Warlord Scavenger-Mutant | -3/Proximity Caves Scavenger-Mutant | -3/Research Mutant | -3/Armory Resources | -11 -10 -10 -10 -9 -8 -7 -7 -7 -7 -7 -7 -6 -6 -6 -6 -6 -5 -5 -5 -5 -5 -5 -4 -4 -4 -3 -3 -3 ----------- Run | Yrd Mat Min Exi Min Mat Fac Was Fac Low Low Dat Pro Fac Low Low Zio Pro Fac Ext Cet Arc Hub Fac Upp War Pro Res Arm Matter Collected 6470 | 290 190 100 61 56 505 518 102 . 364 103 . 251 375 100 95 170 130 572 525 186 499 512 149 . 368 12 237 . Remotely . | . . . . . . . . . . . . . . . . . . . . . . . . . . . . . Salvage Created 10193 | 132 560 96 103 86 1571 1043 507 . . 108 . 175 665 24 66 . 74 449 1650 195 688 820 . . 184 18 979 . Parts 530 | 12 41 9 5 5 97 66 1 . . 8 . 9 31 1 4 . 6 19 58 6 46 50 . . 1 5 50 . Haulers Intercepted 8 | . 1 . . . 3 . . . . . . . 1 . . . . . . . . 1 . . . . 2 . Recyclers Shooed 6 | 1 . . . . 1 2 . . . . . . . . . . . 2 . . . . . . . . . . Parts Field Recycled . | . . . . . . . . . . . . . . . . . . . . . . . . . . . . . Retrieved Matter . | . . . . . . . . . . . . . . . . . . . . . . . . . . . . . Parts Self-Destructed 98 | . . . . . . . . . 41 13 . 21 . 4 4 4 6 . . . . . . . . 5 . . Prevented 16 | . . . . . . . . . . . . . . 5 4 . 2 . . . . . . . . 5 . . Parts Restored . | . . . . . . . . . . . . . . . . . . . . . . . . . . . . . Kills | -11 -10 -10 -10 -9 -8 -7 -7 -7 -7 -7 -7 -6 -6 -6 -6 -6 -5 -5 -5 -5 -5 -5 -4 -4 -4 -3 -3 -3 ------- Run | Yrd Mat Min Exi Min Mat Fac Was Fac Low Low Dat Pro Fac Low Low Zio Pro Fac Ext Cet Arc Hub Fac Upp War Pro Res Arm Combat Hostiles Destroyed 119 | . 10 2 . 1 19 22 2 . . 2 . 3 8 1 1 . 1 4 13 2 3 10 . . 4 3 8 . Melee 9 | . . . . . . . . . . . . . 2 . 1 . . . . . . . . . . 1 5 . Guns 87 | . 10 2 . 1 14 16 2 . . 2 . 3 6 1 . . 1 4 13 2 3 6 . . . 1 . . Cannons 8 | . . . . . 3 . . . . . . . . . . . . . . . . . . . 4 1 . . AOE 14 | . . . . . 2 5 . . . . . . . . . . . . . . . 4 . . . . 3 . Classes Destroyed 20 | 3 5 . . . 5 2 1 . . . . . . . . . . . . . . 1 . . 1 1 1 . Worker 16 | 1 . . . . 1 7 . . . . . . 1 . . . . . . . . 3 . . . . 3 . Builder 12 | . 2 . . . 1 4 . . . . . . 2 . . . . . . . . 1 . . . . 2 . Tunneler 7 | 2 . 1 . 2 1 1 . . . . . . . . . . . . . . . . . . . . . . Hauler 8 | . 1 . . . 3 . . . . . . . 1 . . . . . . . . 1 . . . . 2 . Recycler 13 | 1 . . . . 3 2 . . . . . . . . . . . 1 4 . . . . . . . 2 . Operator 15 | . 1 . . . 2 . . . . . . . . . . . . . 1 . 9 2 . . . . . . Drone 5 | . . . . . . 3 . . . . . . . . . . . . . . . . . . . 2 . . Watcher 12 | . 2 . . . 3 2 . . . . . . . . . . . . 3 1 . 1 . . . . . . Swarmer 22 | . . . . . 1 9 . . . . . 1 1 1 . . . 1 . . . 4 . . . . 4 . Grunt 46 | . 10 2 . 1 8 9 . . . . . . 4 . . . . . 8 . . 1 . . 2 . 1 . Brawler 4 | . . . . . 1 . . . . . . 1 . . . . . . 1 . . . . . 1 . . . Duelist 1 | . . . . . 1 . . . . . . . . . . . . . . . . . . . . . . . Protector 1 | . . . . . . . . . . . . . . . . . . . . . . . . . 1 . . . Sentry 21 | . . . . . 7 . . . . . . . 3 . . . 1 3 1 . 3 2 . . . . 1 . Hunter 4 | . . . . . 1 . . . . 1 . 1 . . 1 . . . . . . . . . . . . . Programmer 10 | . . . . . . 4 . . . 1 . . . . . . . . 2 . . 2 . . . . 1 . Behemoth 1 | . . . . . . . . . . . . . . . . . . . . . . . . . . 1 . . Compactor 2 | . . . . . . . 2 . . . . . . . . . . . . . . . . . . . . . Cetus Guard 2 | . . . . . . . . . . . . . . . . . . . . 2 . . . . . . . . Lightning 1 | . . . . . . . . . . . . . . . . . . . . . . 1 . . . . . . Savage 1 | . . . . . . . . . . . . . . . . . . . . . . 1 . . . . . . Guerrilla 2 | . . . . . . . . . . . . . . . . . . . 1 . 1 . . . . . . . Fireman 1 | . . . . . . . . . . . . . . . . . . . . . . . . . . . 1 . Mutant 1 | . . . . . . . . . . . . . . . . . . . . . . 1 . . . . . . Best Kill Streak 8 | 2 3 2 . 2 5 8 1 . . 1 . 1 4 1 1 . 1 2 8 3 4 7 . . 4 1 4 . Combat Bots Only 5 | . 3 2 . 1 3 4 1 . . 1 . 1 2 1 1 . 1 2 5 2 2 4 . . 4 1 4 . Max Kills in Single Turn 6 | 1 2 1 . 1 2 4 1 . . 1 . 1 2 1 1 . 1 1 2 1 1 6 . . 1 1 2 . Gunslinging 1 | . . . . . . 1 . . . . . . . . . . . . . . . . . . . . . . Exploded 3 | . . . . . 1 1 . . . . . . . . . . . . . . . 3 . . . . 2 . Melee 1 | . . . . . . . . . . . . . 1 . 1 . . . . . . . . . . 1 1 . Uniques/NPCs Destroyed . | . . . . . . . . . . . . . . . . . . . . . . . . . . . . . Combat | -11 -10 -10 -10 -9 -8 -7 -7 -7 -7 -7 -7 -6 -6 -6 -6 -6 -5 -5 -5 -5 -5 -5 -4 -4 -4 -3 -3 -3 -------- Run | Yrd Mat Min Exi Min Mat Fac Was Fac Low Low Dat Pro Fac Low Low Zio Pro Fac Ext Cet Arc Hub Fac Upp War Pro Res Arm Hostile Shots Fired 1301 | . 50 6 . 15 87 201 4 . 8 6 . 17 172 5 74 . 22 10 21 3 20 169 88 . 24 16 181 102 Missed 432 | . 11 4 . 2 24 48 . . 2 1 . 6 72 3 26 . 8 2 7 3 6 52 33 . 14 7 59 42 Hits 869 | . 39 2 . 13 63 153 4 . 6 5 . 11 100 2 48 . 14 8 14 . 14 117 55 . 10 9 122 60 Melee 5 | . . . . . . . 4 . . . . . 1 . . . . . . . . . . . . . . . Projectile 864 | . 39 2 . 13 63 153 . . 6 5 . 11 99 2 48 . 14 8 14 . 14 117 55 . 10 9 122 60 AOE 18 | . . . . 14 . . . . . . . . . . . . . . . . . . . . . . . 4 Critical Strikes 36 | . 1 . . . 4 6 3 . . . . . . . 1 . 3 . 1 . 1 4 1 . 2 . 6 3 Part Disruptions 5 | . . . . . . 1 . . . . . . . . . . . . . . . . . . . . 4 . Damage Taken 15962 | . 505 29 . 548 1004 2647 179 . 96 80 . 193 729 25 484 . 326 175 328 79 440 2782 735 . 410 279 2719 1170 Core 3768 | . 120 . . 91 201 365 95 . . 14 . 47 107 13 134 . 84 . 19 23 76 748 153 . 95 75 523 785 Absorbed by Shields 171 | . . . . . . . . . . . . . . 10 161 . . . . . . . . . . . . . Ignored by Resistances 209 | . . . . . . . . . . . . . . . . . . . . . . . . . 87 35 38 49 Regen/Repaired (Parts) 29 | . . . . . . . . . . . . . 18 . . . . . . . . . . . 11 . . . Core Remaining (%) 49 | 100 . . . 15 63 . . . . . . 25 . . . . 60 . . . . 13 . . . 71 . . Volleys Fired 522 | 5 46 9 16 15 53 106 13 . 7 6 . 11 29 2 8 . 13 23 32 10 35 32 6 . 15 18 11 1 Largest 3 | 2 2 1 1 2 3 3 3 . 1 3 . 3 3 2 1 . 2 3 3 3 3 3 1 . 1 2 1 1 Hottest 260 | 40 40 20 20 85 135 240 240 . 33 99 . 99 99 63 30 . 58 105 105 105 105 105 88 . 100 140 260 260 Shots Fired 1033 | 10 90 9 16 17 129 138 34 . 7 19 . 34 78 4 8 . 26 59 88 23 101 90 6 . 15 20 11 1 Gun 948 | 10 88 9 16 17 114 121 32 . 6 19 . 34 78 4 8 . 26 57 84 23 101 88 6 . . 2 5 . Cannon 40 | . . . . . 10 3 . . . . . . . . . . . . . . . . . . 7 18 2 . Launcher 31 | . 2 . . . 5 13 2 . . . . . . . . . . 2 . . . 2 . . . . 4 1 Special 14 | . . . . . . 1 . . 1 . . . . . . . . . 4 . . . . . 8 . . . Kinetic 667 | 10 88 9 16 12 . . . . 6 19 . 34 78 4 8 . 26 54 84 23 101 88 . . . 2 5 . Thermal 141 | . . . . 5 . 90 32 . . . . . . . . . . 3 . . . . 1 . . 3 6 1 Explosive 26 | . 2 . . . 5 13 2 . . . . . . . . . . 2 . . . 2 . . . . . . Electromagnetic 158 | . . . . . 124 34 . . . . . . . . . . . . . . . . . . . . . . Entropic 22 | . . . . . . . . . . . . . . . . . . . . . . . . . 7 15 . . Phasic 5 | . . . . . . . . . . . . . . . . . . . . . . . 5 . . . . . Robot Hit Streak 25 | 8 12 12 9 4 25 17 12 . 4 3 . 9 6 1 . . 13 9 25 11 15 22 4 . 3 4 1 . Robot Miss Streak 7 | . 3 1 1 1 3 5 7 . 1 2 . 6 3 2 . . 4 4 4 3 3 5 1 . 3 2 3 2 Penetration Max 3 | . . . . . . . . . . . . . 2 . . . . 1 3 1 1 1 . . 1 . . . Secondary Targets 10 | . 1 . . . 2 2 1 . . . . . 1 . . . . 1 . . . 2 . . . . . . Max Gunslinging Chain 1 | . 1 . . . 1 1 1 . . . . . 1 . . . . 1 . . . 1 . . . . . . Shots Hit Robots 720 | 8 60 7 15 11 97 96 28 . 5 10 . 20 45 1 6 . 18 35 60 17 65 58 5 . 8 12 33 . Core Hits 446 | 5 30 5 4 3 77 71 16 . 2 3 . 9 27 1 2 . 4 13 48 6 28 65 3 . 3 4 17 . Critical Kills 47 | . . . . . . . . . . 2 . 2 8 1 . . . 3 17 3 7 4 . . . . . . Critical Parts Destroyed 67 | . . . . . . . . . . 4 . 5 12 . . . 1 6 18 5 9 7 . . . . . . Critical Strikes 143 | . . . . . . 2 . . . 6 . 8 25 1 2 . 1 10 35 9 19 12 . . 4 4 5 . Burn 2 | . . . . . . 2 . . . . . . . . . . . . . . . . . . . . . . Destroy 125 | . . . . . . . . . . 6 . 8 24 1 . . 1 10 35 9 19 12 . . . . . . Sever 2 | . . . . . . . . . . . . . . . . . . . . . . . . . . . 2 . Impale 6 | . . . . . . . . . . . . . 1 . 2 . . . . . . . . . . . 3 . Sunder 8 | . . . . . . . . . . . . . . . . . . . . . . . . . 4 4 . . Melee Attacks 97 | . . . . . . . . . . . . . 7 . 15 1 . 1 . . . . . . 1 3 68 1 Impact . | . . . . . . . . . . . . . . . . . . . . . . . . . . . . . Slashing 50 | . . . . . . . . . . . . . . . . . . . . . . . . . 1 3 46 . Piercing 47 | . . . . . . . . . . . . . 7 . 15 1 . 1 . . . . . . . . 22 1 Sneak Attacks 13 | . . . . . . . . . . . . . 1 . . . . . . . . . . . 1 . 11 . Combat Hostiles . | . . . . . . . . . . . . . . . . . . . . . . . . . . . . . Follow-up Attacks 1 | . . . . . . . . . . . . . . . . . . . . . . . . . . . 1 . Damage Inflicted 19380 | 93 720 95 191 157 2114 3518 888 . 27 45 . 115 599 7 185 . 349 271 726 142 1704 3075 247 . 990 967 2155 . Guns 11186 | 93 634 95 191 157 1548 1817 888 . 27 45 . 115 349 7 . . 349 271 726 142 1704 1799 181 . . 27 21 . Cannons 2088 | . . . . . 168 100 . . . . . . . . . . . . . . . . . . 909 911 . . Explosions 3740 | . 86 . . . 398 1601 . . . . . . 75 . . . . . . . . 1276 . . . . 304 . Melee 2300 | . . . . . . . . . . . . . 175 . 185 . . . . . . . . . 81 29 1830 . Ramming 66 | . . . . . . . . . . . . . . . . . . . . . . . 66 . . . . . Kinetic 6692 | 93 634 95 191 97 . . . . 27 45 . 115 349 7 . . 349 271 726 142 1704 1799 . . . 27 21 . Thermal 3001 | . . . . 60 200 1520 888 . . . . . . . . . . . . . . . 29 . . . 304 . Explosive 2566 | . 86 . . . 198 1444 . . . . . . 75 . . . . . . . . 763 . . . . . . Electromagnetic 2783 | . . . . . 1716 554 . . . . . . . . . . . . . . . 513 . . . . . . Impact . | . . . . . . . . . . . . . . . . . . . . . . . . . . . . . Slashing 1269 | . . . . . . . . . . . . . . . . . . . . . . . . . 81 29 1159 . Piercing 1031 | . . . . . . . . . . . . . 175 . 185 . . . . . . . . . . . 671 . Entropic 1820 | . . . . . . . . . . . . . . . . . . . . . . . . . 909 911 . . Phasic 152 | . . . . . . . . . . . . . . . . . . . . . . . 152 . . . . . Highest Corruption 13 | . . . . . 2 12 12 12 12 10 10 13 . . . . 4 . . . . 13 2 2 2 . 7 7 Average Corruption 6 | . . . . . 2 6 12 12 9 9 10 10 . . . . 1 . . . . 6 1 2 2 . 4 7 Corruption Purged 3 | . . . . . . . . . 3 . . . . . . . . . . . . . . . . . . . Corruption Blocked . | . . . . . . . . . . . . . . . . . . . . . . . . . . . . . Effects 124 | . . . . . 6 40 10 5 22 8 2 10 . . . . 6 . . . . 8 . 1 1 . 3 2 Message Errors 27 | . . . . . 1 10 2 2 5 2 1 1 . . . . 1 . . . . 1 . . . . . 1 Matter Fused 30 | . . . . . 2 12 4 . 3 . . 2 . . . . 1 . . . . 2 . 1 1 . 1 1 Heat Flow Errors 16 | . . . . . 1 1 . 2 5 3 . 1 . . . . 1 . . . . 1 . . . . 1 . Energy Discharges 14 | . . . . . . 5 2 . 1 . . 2 . . . . 2 . . . . 2 . . . . . . Parts Rejected 4 | . . . . . . 1 . . 1 . . 1 . . . . . . . . . . . . . . 1 . Parts Fused 1 | . . . . . . . . . 1 . . . . . . . . . . . . . . . . . . . Data Loss (minor) 19 | . . . . . 1 5 1 1 4 1 1 2 . . . . 1 . . . . 2 . . . . . . Data Loss (major) 4 | . . . . . 1 1 . . 2 . . . . . . . . . . . . . . . . . . . Misfires 4 | . . . . . . 2 . . . 1 . 1 . . . . . . . . . . . . . . . . Alerts 1 | . . . . . . . . . . 1 . . . . . . . . . . . . . . . . . . Weapon Failures 4 | . . . . . . 3 1 . . . . . . . . . . . . . . . . . . . . . Overload Shots . | . . . . . . . . . . . . . . . . . . . . . . . . . . . . . Overflow Damage 937 | . . . . . 4 268 . . . . . . 37 . . . . . . . . . . . 152 . 476 . Projectiles 152 | . . . . . . . . . . . . . . . . . . . . . . . . . 152 . . . Explosions 288 | . . . . . 4 268 . . . . . . . . . . . . . . . . . . . . 16 . Melee 497 | . . . . . . . . . . . . . 37 . . . . . . . . . . . . . 460 . Knockbacks . | . . . . . . . . . . . . . . . . . . . . . . . . . . . . . Impact . | . . . . . . . . . . . . . . . . . . . . . . . . . . . . . Kinetic . | . . . . . . . . . . . . . . . . . . . . . . . . . . . . . Secondary . | . . . . . . . . . . . . . . . . . . . . . . . . . . . . . Self-Inflicted Damage 571 | . 29 . . . 68 303 . . . . . . . . . . . . . . . 140 31 . . . . . Shots 14 | . 1 . . . 2 6 . . . . . . . . . . . . . . . 5 . . . . . . Rammed 7 | . . . . . . . . . . . . . . . . . . . . . . . 7 . . . . . Targets Rammed 7 | . . . . . . . . . . . . . . . . . . . . . . . 7 . . . . . Kicked . | . . . . . . . . . . . . . . . . . . . . . . . . . . . . . Crushed . | . . . . . . . . . . . . . . . . . . . . . . . . . . . . . Highest Temperature 369 | . 31 . . 72 369 310 95 262 224 303 . 77 10 . . . 249 201 63 . 27 201 133 . 200 141 325 168 Average Temperature 77 | . 10 . . 26 98 84 44 127 75 143 . 38 2 . . . 59 73 20 . 10 19 64 . 127 65 122 96 Received Heat Transfer 2426 | . 282 15 . 18 459 396 . . 27 . . . 66 6 27 . 45 27 164 . 99 186 70 . 60 57 395 27 Effects 4 | . . . . . 2 . . . . . . . . . . . . 2 . . . . . . . . . . Shutdowns 1 | . . . . . 1 . . . . . . . . . . . . . . . . . . . . . . . Energy Bleed 1 | . . . . . 1 . . . . . . . . . . . . . . . . . . . . . . . Interference 2 | . . . . . . . . . . . . . . . . . . 2 . . . . . . . . . . Siege Activations . | . . . . . . . . . . . . . . . . . . . . . . . . . . . . . Martial Activations . | . . . . . . . . . . . . . . . . . . . . . . . . . . . . . Shielding Activations . | . . . . . . . . . . . . . . . . . . . . . . . . . . . . . Robots Disrupted 2 | . . . . . 2 . . . . . . . . . . . . . . . . . . . . . . . Combat Hostiles 2 | . . . . . 2 . . . . . . . . . . . . . . . . . . . . . . . Robots Corrupted 1 | . . . . . 1 . . . . . . . . . . . . . . . . . . . . . . . Combat Hostiles . | . . . . . . . . . . . . . . . . . . . . . . . . . . . . . Parts Fried 8 | . . . . . 8 . . . . . . . . . . . . . . . . . . . . . . . Impact Corruptions . | . . . . . . . . . . . . . . . . . . . . . . . . . . . . . Robots Melted 1 | . . . . . . 1 . . . . . . . . . . . . . . . . . . . . . . Combat Hostiles 1 | . . . . . . 1 . . . . . . . . . . . . . . . . . . . . . . Parts Melted 12 | . . . . . . 8 . . . 1 . . . . . . . . 2 . 1 . . . . . . . Heat Transferred 5520 | . . . . 148 150 3025 2000 . . . . . . . . . . . . . . . 37 . . . 160 . Parts Sabotaged . | . . . . . . . . . . . . . . . . . . . . . . . . . . . . . Parts Stolen . | . . . . . . . . . . . . . . . . . . . . . . . . . . . . . Parts Stripped . | . . . . . . . . . . . . . . . . . . . . . . . . . . . . . Power Chain Reactions 8 | . . . . . 5 2 . . . . . . . . . . . . . . . 1 . . . . . . Alert | -11 -10 -10 -10 -9 -8 -7 -7 -7 -7 -7 -7 -6 -6 -6 -6 -6 -5 -5 -5 -5 -5 -5 -4 -4 -4 -3 -3 -3 ------- Run | Yrd Mat Min Exi Min Mat Fac Was Fac Low Low Dat Pro Fac Low Low Zio Pro Fac Ext Cet Arc Hub Fac Upp War Pro Res Arm Maximum Alert Level 3 | . . . . . 1 1 . . . . . . 2 . . . . 1 3 2 1 3 2 . . . 2 1 Low Security (%) 64 | 100 100 100 . 100 82 91 100 100 . . . . . . . . . 62 33 . . 52 . . . . . 43 Level 1 11 | . . . . . 17 8 . . . . . . . . . . . 37 5 . 100 9 . . . . 10 56 Level 2 18 | . . . . . . . . . . . . . 100 . . . . . 14 100 . . 100 . . . 89 . Level 3 5 | . . . . . . . . . . . . . . . . . . . 46 . . 37 . . . . . . Level 4 . | . . . . . . . . . . . . . . . . . . . . . . . . . . . . . Level 5 . | . . . . . . . . . . . . . . . . . . . . . . . . . . . . . High Security . | . . . . . . . . . . . . . . . . . . . . . . . . . . . . . Max Security . | . . . . . . . . . . . . . . . . . . . . . . . . . . . . . Peak Influence 1087 | 10 94 50 . 81 363 394 141 . . . . . 609 . . . . 309 1067 646 282 1087 649 . . . 555 267 Initial 560 | . . 25 . . . 163 136 . . . . . 501 . . . . 171 83 560 222 85 532 . . . 477 260 Average 210 | . 29 6 . 13 78 63 79 . . . . . 530 . . . . 196 620 596 256 475 560 . . . 448 200 Influence Increases 9419 | 20 296 55 . 121 776 883 15 . 90 60 . 242 791 20 30 . 84 521 1342 166 263 1464 308 . 319 85 1242 226 Destroy 0b10 Robot/C 3320 | . 200 40 . 80 380 440 . . . 40 . 180 160 20 20 . 40 180 560 80 80 240 100 . 100 20 280 80 Destroy 0b10 Robot/NC 455 | 20 30 5 . 10 70 80 . . . . . . 20 . . . 10 10 40 5 45 40 . . 5 10 55 . Destroy Leader 690 | . 46 10 . 20 132 104 . . . 20 . 30 32 . 10 . 10 32 76 . . 74 20 . . 10 44 20 Allied During Kill 886 | . . . . 11 . . . . . . . 32 . . . . 24 62 538 77 42 27 29 . 4 . 16 24 Successful Hack 54 | . 11 . . . 15 . . . . . . . 16 . . . . . 7 . . . 5 . . . . . Disable Machine 675 | . . . . . 45 60 . . . . . . 30 . . . . 45 15 . 60 375 15 . . . 15 15 Destroy Structure 1179 | . 9 . . . 89 139 15 . . . . . 23 . . . . 42 106 4 36 528 34 . . . 112 42 Advance Influence 1050 | . . . . . . . . . . . . . 450 . . . . 150 . . . . . . . . 450 . Partial Spotted 15 | . . . . . . . . . . . . . . . . . . . . . . . 15 . . . . . Lose Combat Pursuer 1095 | . . . . . 45 60 . . 90 . . . 60 . . . . . . . . 180 90 . 210 45 270 45 Influence Decreases 9203 | 20 231 120 . 121 417 851 406 . 90 60 . 160 365 259 282 17 50 385 511 611 574 622 895 245 411 208 785 507 Entered New Map 3223 | . . 40 . . . 196 255 . . . . . 31 189 52 17 . 13 87 441 334 160 555 185 255 163 13 237 Time Decay 3849 | 20 231 80 . 81 397 394 101 . 90 60 . 140 254 70 170 . 50 262 294 100 120 222 120 60 126 45 302 60 Search Patrol Dispatched 200 | . . . . . . . . . . . . . . . . . . . . . . . . . . . 200 . Lost Part 991 | . . . . . 20 171 50 . . . . . 70 . 60 . . 10 10 10 20 180 120 . 10 . 170 90 Lost Ally 940 | . . . . 40 . 90 . . . . . 20 10 . . . . 100 120 60 100 60 100 . 20 . 100 120 Squads Dispatched 36 | . 2 . . . 3 8 . . . . . . 2 . . . . 3 2 . . 7 3 . . . 5 1 Investigation 5 | . 1 . . . 1 . . . . . . . 1 . . . . . . . . 2 . . . . . . Extermination 9 | . . . . . . 5 . . . . . . 1 . . . . 1 . . . 1 . . . . 1 . Reinforcement 16 | . 1 . . . 1 3 . . . . . . . . . . . . 2 . . 2 2 . . . 4 1 Assault 1 | . . . . . . . . . . . . . . . . . . . . . . 1 . . . . . . Garrison 5 | . . . . . 1 . . . . . . . . . . . . 2 . . . 1 1 . . . . . Intercept . | . . . . . . . . . . . . . . . . . . . . . . . . . . . . . Searches Triggered 2 | . . . . . . . . . . . . . . . . . . . . . . . . . . . 2 . Data Miner Redirects 2 | . . . . . . . . . . . . . . . . . . . . . . 2 . . . . . . Construction Impeded 4 | . . . . . . 2 . . . . . . . . . . . . . . . 1 . . . . 1 . Haulers Reinforced . | . . . . . . . . . . . . . . . . . . . . . . . . . . . . . Active Scanning Responses . | . . . . . . . . . . . . . . . . . . . . . . . . . . . . . Cargo Convoy Interrupts . | . . . . . . . . . . . . . . . . . . . . . . . . . . . . . Stealth | -11 -10 -10 -10 -9 -8 -7 -7 -7 -7 -7 -7 -6 -6 -6 -6 -6 -5 -5 -5 -5 -5 -5 -4 -4 -4 -3 -3 -3 --------- Run | Yrd Mat Min Exi Min Mat Fac Was Fac Low Low Dat Pro Fac Low Low Zio Pro Fac Ext Cet Arc Hub Fac Upp War Pro Res Arm Distress Signals 19 | . 1 . . . 3 3 . . . . . . . . . . . . 4 1 . 1 1 . 3 . 2 . Communications Jammed . | . . . . . . . . . . . . . . . . . . . . . . . . . . . . . Distress Signals . | . . . . . . . . . . . . . . . . . . . . . . . . . . . . . Times Spotted 390 | . 15 2 . 6 33 30 6 . 15 2 . 8 12 3 2 . 4 8 24 5 18 37 17 . 70 7 42 24 Peak Tracking Total 23 | . 3 2 . 2 7 6 4 . 10 1 . 3 4 3 1 . 2 4 5 5 2 12 6 . 23 3 10 15 Tactical Retreats 39 | . . . . . 2 3 1 . 5 . . . 3 . . . . . . . . 6 3 . 4 1 10 1 Traps | -11 -10 -10 -10 -9 -8 -7 -7 -7 -7 -7 -7 -6 -6 -6 -6 -6 -5 -5 -5 -5 -5 -5 -4 -4 -4 -3 -3 -3 ------- Run | Yrd Mat Min Exi Min Mat Fac Was Fac Low Low Dat Pro Fac Low Low Zio Pro Fac Ext Cet Arc Hub Fac Upp War Pro Res Arm Traps Triggered 11 | . 1 . . . 1 3 . . . . . . . . . . . . 3 . . 1 . . . . 1 1 Indirectly 1 | . . . . . . . . . . . . . . . . . . . . . . 1 . . . . . . Trap Hack Attempts . | . . . . . . . . . . . . . . . . . . . . . . . . . . . . . Triggered . | . . . . . . . . . . . . . . . . . . . . . . . . . . . . . Disarmed . | . . . . . . . . . . . . . . . . . . . . . . . . . . . . . Reprogrammed . | . . . . . . . . . . . . . . . . . . . . . . . . . . . . . Reused . | . . . . . . . . . . . . . . . . . . . . . . . . . . . . . Traps Extracted . | . . . . . . . . . . . . . . . . . . . . . . . . . . . . . Installed . | . . . . . . . . . . . . . . . . . . . . . . . . . . . . . Triggered . | . . . . . . . . . . . . . . . . . . . . . . . . . . . . . Machines | -11 -10 -10 -10 -9 -8 -7 -7 -7 -7 -7 -7 -6 -6 -6 -6 -6 -5 -5 -5 -5 -5 -5 -4 -4 -4 -3 -3 -3 ---------- Run | Yrd Mat Min Exi Min Mat Fac Was Fac Low Low Dat Pro Fac Low Low Zio Pro Fac Ext Cet Arc Hub Fac Upp War Pro Res Arm Machines Disabled 46 | . . . . . 3 4 . . 1 . . . 2 . . . . 3 1 . 4 25 1 . . . 1 1 Max in Single Turn 19 | . . . . . 1 3 . . 1 . . . 2 . . . . 1 . . 1 19 . . . . 1 . Garrison Access 3 | . . . . . . . . . . . . . . . . . . 1 . . . 1 . . . . 1 . Network Hub 2 | . . . . . . . . . . . . . . . . . . . . . . 2 . . . . . . Energy Cycler 2 | . . . . . . . . . . . . . . . . . . . 1 . . . . . . . . 1 Machines Repaired . | . . . . . . . . . . . . . . . . . . . . . . . . . . . . . Machines Dismantled 1 | . . . . . . . . . 1 . . . . . . . . . . . . . . . . . . . Machines Sabotaged . | . . . . . . . . . . . . . . . . . . . . . . . . . . . . . Overloaded Fab Kills . | . . . . . . . . . . . . . . . . . . . . . . . . . . . . . Hacking | -11 -10 -10 -10 -9 -8 -7 -7 -7 -7 -7 -7 -6 -6 -6 -6 -6 -5 -5 -5 -5 -5 -5 -4 -4 -4 -3 -3 -3 --------- Run | Yrd Mat Min Exi Min Mat Fac Was Fac Low Low Dat Pro Fac Low Low Zio Pro Fac Ext Cet Arc Hub Fac Upp War Pro Res Arm Machines Accessed 46 | . 6 1 2 . 6 1 . . 2 2 3 . 10 . . . . 2 1 . . 1 2 . 4 . 3 . Terminals 16 | . 5 . . . 5 . . . 1 . . . 4 . . . . . 1 . . . . . . . . . Fabricators 4 | . . . . . . . . . . . . . 3 . . . . . . . . . 1 . . . . . Repair Stations . | . . . . . . . . . . . . . . . . . . . . . . . . . . . . . Recycling Units 5 | . 1 . . . . . . . . . . . 2 . . . . 1 . . . . 1 . . . . . Scanalyzers 5 | . . . . . 1 1 . . . . . . 1 . . . . . . . . . . . . . 2 . Garrison Access 3 | . . . . . . . . . . . . . . . . . . 1 . . . 1 . . . . 1 . Total Hacks 123 | . 17 1 3 . 19 3 . . 4 8 26 . 18 . . . . 3 1 . . 1 5 . 10 . 4 . Successful 87 | . 8 1 3 . 12 2 . . 4 8 26 . 7 . . . . 1 1 . . 1 2 . 10 . 1 . Failed 36 | . 9 . . . 7 1 . . . . . . 11 . . . . 2 . . . . 3 . . . 3 . Catastrophic 6 | . 1 . . . . . . . . . . . 3 . . . . . . . . . . . . . 2 . Database Lockouts . | . . . . . . . . . . . . . . . . . . . . . . . . . . . . . Manual 130 | . 16 . 1 . 12 . . . . . . . 1 . . . . 10 21 . . 32 15 . 1 . 15 6 Terminals 45 | . 16 . . . 17 . . . 3 . . . 8 . . . . . 1 . . . . . . . . . Fabricators 7 | . . . . . . . . . . . . . 4 . . . . . . . . . 3 . . . . . Repair Stations . | . . . . . . . . . . . . . . . . . . . . . . . . . . . . . Recycling Units 9 | . 1 . . . . . . . . . . . 5 . . . . 1 . . . . 2 . . . . . Scanalyzers 8 | . . . . . 2 3 . . . . . . 1 . . . . . . . . . . . . . 2 . Garrison Access 5 | . . . . . . . . . . . . . . . . . . 2 . . . 1 . . . . 2 . Terminal Hacks 61 | . 1 1 3 . 4 . . . 4 8 26 . 3 . . . . . 1 . . . . . 10 . . . Record 27 | . . . 2 . . . . . 3 7 6 . . . . . . . . . . . . . 9 . . . Part Schematic 13 | . . . . . . . . . . . 13 . . . . . . . . . . . . . . . . . Robot Schematic 4 | . . . . . . . . . . . 4 . . . . . . . . . . . . . . . . . Prototype ID Bank 3 | . . . . . . . . . . . 3 . . . . . . . . . . . . . . . . . Open Door 5 | . . 1 . . . . . . 1 1 . . . . . . . . 1 . . . . . 1 . . . Branch Access Points 1 | . . . . . 1 . . . . . . . . . . . . . . . . . . . . . . . Alert Level 1 | . . . . . . . . . . . . . 1 . . . . . . . . . . . . . . . Recall Extermination 1 | . . . . . . . . . . . . . 1 . . . . . . . . . . . . . . . Recall Reinforcements 2 | . . . . . 2 . . . . . . . . . . . . . . . . . . . . . . . Hauler Manifests 1 | . . . . . . . . . . . . . 1 . . . . . . . . . . . . . . . Zone Layout 2 | . 1 . . . 1 . . . . . . . . . . . . . . . . . . . . . . . Proto ID Catalog 1 | . . . 1 . . . . . . . . . . . . . . . . . . . . . . . . . Fabricator Hacks 5 | . . . . . . . . . . . . . 3 . . . . . . . . . 2 . . . . . Network Status 2 | . . . . . . . . . . . . . 1 . . . . . . . . . 1 . . . . . Build 3 | . . . . . . . . . . . . . 2 . . . . . . . . . 1 . . . . . Repair Station Hacks . | . . . . . . . . . . . . . . . . . . . . . . . . . . . . . Recycling Unit Hacks 2 | . 1 . . . . . . . . . . . 1 . . . . . . . . . . . . . . . Retrieve Components 2 | . 1 . . . . . . . . . . . 1 . . . . . . . . . . . . . . . Scanalyzer 4 | . . . . . 2 2 . . . . . . . . . . . . . . . . . . . . . . Retrieve Study 4 | . . . . . 2 2 . . . . . . . . . . . . . . . . . . . . . . Garrison Access Hacks 3 | . . . . . . . . . . . . . . . . . . 1 . . . 1 . . . . 1 . Seal Access 3 | . . . . . . . . . . . . . . . . . . 1 . . . 1 . . . . 1 . Unauthorized Hacks 12 | . 6 . . . 6 . . . . . . . . . . . . . . . . . . . . . . . Terminals 12 | . 6 . . . 6 . . . . . . . . . . . . . . . . . . . . . . . Botnet 3 | . 1 . . . 2 . . . . . . . . . . . . . . . . . . . . . . . Skim 9 | . 5 . . . 4 . . . . . . . . . . . . . . . . . . . . . . . Fabricators . | . . . . . . . . . . . . . . . . . . . . . . . . . . . . . Repair Stations . | . . . . . . . . . . . . . . . . . . . . . . . . . . . . . Recycling Units . | . . . . . . . . . . . . . . . . . . . . . . . . . . . . . Scanalyzers . | . . . . . . . . . . . . . . . . . . . . . . . . . . . . . Garrison Access . | . . . . . . . . . . . . . . . . . . . . . . . . . . . . . Data Cores Recovered 2 | . . . . . . . . . . . . . . . . . . . 1 . . 1 . . . . . . Used . | . . . . . . . . . . . . . . . . . . . . . . . . . . . . . Hacking Detections 25 | . 5 . . . 5 . . . 1 . . . 7 . . . . 1 1 . . . 2 . . . 3 . Full Trace Events 2 | . . . . . . . . . 1 . . . 1 . . . . . . . . . . . . . . . Feedback Events . | . . . . . . . . . . . . . . . . . . . . . . . . . . . . . Feedback Blocked . | . . . . . . . . . . . . . . . . . . . . . . . . . . . . . Robot Schematics Acquired 13 | . . . . . . . . . . . 4 . . . . 3 . . 3 . . 3 . . . . . . Robots Built 1 | . . . . . . . . . . . . . 1 . . . . . . . . . . . . . . . Authchips . | . . . . . . . . . . . . . . . . . . . . . . . . . . . . . Time 116 | . . . . . . . . . . . . . 116 . . . . . . . . . . . . . . . Total Robot Build Rating 3 | . . . . . . . . . . . . . 3 . . . . . . . . . . . . . . . Part Schematics Acquired 58 | . . . . . . . . . . . 13 . . . . 15 . . 16 . . 14 . . . . . . Parts Built 4 | . . . . . . . . . . . . . 2 . . . . . . . . . 2 . . . . . Authchips . | . . . . . . . . . . . . . . . . . . . . . . . . . . . . . Time 256 | . . . . . . . . . . . . . 128 . . . . . . . . . 128 . . . . . Total Part Build Rating 32 | . . . . . . . . . . . . . 16 . . . . . . . . . 16 . . . . . Part Studies Acquired 4 | . . . . . 2 2 . . . . . . . . . . . . . . . . . . . . . . Parts Repaired . | . . . . . . . . . . . . . . . . . . . . . . . . . . . . . Time . | . . . . . . . . . . . . . . . . . . . . . . . . . . . . . Parts Recycled . | . . . . . . . . . . . . . . . . . . . . . . . . . . . . . Recycled Matter . | . . . . . . . . . . . . . . . . . . . . . . . . . . . . . Retrieved Matter . | . . . . . . . . . . . . . . . . . . . . . . . . . . . . . Retrieved Components 11 | . 1 . . . . . . . . . . . 10 . . . . . . . . . . . . . . . Parts Scanalyzed . | . . . . . . . . . . . . . . . . . . . . . . . . . . . . . Part Schematics Acquired . | . . . . . . . . . . . . . . . . . . . . . . . . . . . . . Parts Damaged . | . . . . . . . . . . . . . . . . . . . . . . . . . . . . . Bothacking | -11 -10 -10 -10 -9 -8 -7 -7 -7 -7 -7 -7 -6 -6 -6 -6 -6 -5 -5 -5 -5 -5 -5 -4 -4 -4 -3 -3 -3 ------------ Run | Yrd Mat Min Exi Min Mat Fac Was Fac Low Low Dat Pro Fac Low Low Zio Pro Fac Ext Cet Arc Hub Fac Upp War Pro Res Arm Used RIF Installer . | . . . . . . . . . . . . . . . . . . . . . . . . . . . . . Robots Hacked 7 | . . . . . . 1 . . 1 . . . . . . . . . 1 . . . . . 4 . . . Non-combat 1 | . . . . . . 1 . . . . . . . . . . . . . . . . . . . . . . Combat 6 | . . . . . . . . . 1 . . . . . . . . . 1 . . . . . 4 . . . Robot Hacks Applied 7 | . . . . . . 1 . . 1 . . . . . . . . . 1 . . . . . 4 . . . parse_system 6 | . . . . . . . . . 1 . . . . . . . . . 1 . . . . . 4 . . . find_chute 1 | . . . . . . 1 . . . . . . . . . . . . . . . . . . . . . . Relay Couplers Released . | . . . . . . . . . . . . . . . . . . . . . . . . . . . . . Fabnet Peak Effective % . | . . . . . . . . . . . . . . . . . . . . . . . . . . . . . Robots Rewired 13 | . . . 4 . . . . . . . . . . . . . . . 9 . . . . . . . . . Allies Hacked 3 | . . . . . . . . . . . . . . . . . . . . . . . . . . . 3 . Hacks Repelled . | . . . . . . . . . . . . . . . . . . . . . . . . . . . . . Allies | -11 -10 -10 -10 -9 -8 -7 -7 -7 -7 -7 -7 -6 -6 -6 -6 -6 -5 -5 -5 -5 -5 -5 -4 -4 -4 -3 -3 -3 -------- Run | Yrd Mat Min Exi Min Mat Fac Was Fac Low Low Dat Pro Fac Low Low Zio Pro Fac Ext Cet Arc Hub Fac Upp War Pro Res Arm Total Allies 60 | . . 1 4 3 . . . . . . . 1 1 . . 4 . 7 16 . . 3 8 . . . 6 6 Largest Group 16 | . . 1 4 4 . . . . . . . 1 1 . . 4 4 5 16 13 9 4 5 1 1 . 3 3 Highest-Rated Group 547 | . . 31 45 45 . . . . . . . 96 23 . . 155 155 284 547 395 264 227 480 96 96 . 206 288 Highest-Rated Ally 103 | . . 31 31 21 . . . . . . . 96 23 . . 40 40 70 70 39 39 70 103 96 96 . 103 96 Zionite Dispatches 14 | . . . . . . . . . . . . . . . . . . 2 3 . . 1 3 . . . 3 2 Heavy 2 | . . . . . . . . . . . . . . . . . . . . . . . 1 . . . 1 . Light 6 | . . . . . . . . . . . . . . . . . . 1 1 . . 1 2 . . . . 1 Fire 2 | . . . . . . . . . . . . . . . . . . 1 . . . . . . . . 1 . Hacker 1 | . . . . . . . . . . . . . . . . . . . . . . . . . . . . 1 Demo 2 | . . . . . . . . . . . . . . . . . . . 1 . . . . . . . 1 . Explosive Resupply 1 | . . . . . . . . . . . . . . . . . . . 1 . . . . . . . . . Total Orders 2 | . . . . . . . . . . . . . 1 . . . . . 1 . . . . . . . . . AID 1 | . . . . . . . . . . . . . 1 . . . . . . . . . . . . . . . DROP 1 | . . . . . . . . . . . . . . . . . . . 1 . . . . . . . . . Ally Attacks 319 | . . . . 23 . . . . . . . 14 . . . . 14 45 82 20 34 25 17 . 3 . 22 20 Total Damage 8249 | . . . . 285 . . . . . . . 463 . . . . 306 788 1810 441 533 434 900 . 189 . 1116 984 Kills 61 | . . . . 4 . . . . . . . 6 . . . . 3 7 17 2 1 2 5 . 2 . 8 4 Allies Corrupted 3 | . . . . . . . . . . . . 1 . . . . . . . . . 1 . . . . 1 . Allies Melted 3 | . . . . . . . . . . . . . . . . . . . . . . . . . 2 . 1 . Intel | -11 -10 -10 -10 -9 -8 -7 -7 -7 -7 -7 -7 -6 -6 -6 -6 -6 -5 -5 -5 -5 -5 -5 -4 -4 -4 -3 -3 -3 ------- Run | Yrd Mat Min Exi Min Mat Fac Was Fac Low Low Dat Pro Fac Low Low Zio Pro Fac Ext Cet Arc Hub Fac Upp War Pro Res Arm Active Infowar (turns) 10956 | 49 761 595 846 386 99 1914 191 . . . . . 532 154 351 1246 838 567 656 210 259 467 70 . 1 . 640 124 Optics 7453 | . . . . . . 1914 191 . . . . . 532 154 351 1246 838 567 656 210 259 467 68 . . . . . Sensors 4454 | . . . . . . . . . . . . . 1 154 351 1242 818 367 656 208 259 23 . . . . 341 34 Seismic 2799 | 49 761 595 846 386 99 . . . . . . . . . . . . . . . . . . . . . 63 . Decoding 19 | . . . . . . . . . . . . . . . . . 19 . . . . . . . . . . . T.N.C. 564 | . . . . . . . . . . . . . . . . . . . . . . . . . . . 440 124 Cloaking 378 | . . . . . . . . . . . . . . . . . . . . . . . . . 1 . 377 . Jamming 2 | . . . . . . . . . . . . . . . . . . . . . . . 2 . . . . . Robot Analysis Total . | . . . . . . . . . . . . . . . . . . . . . . . . . . . . . Derelict Logs Recovered 8 | . . . . . . . . . 2 1 . . . . . 3 2 . . . . . . . . . . . Drone Launches 16 | . . . . . . 16 . . . . . . . . . . . . . . . . . . . . . . Drone Recoveries . | . . . . . . . . . . . . . . . . . . . . . . . . . . . . . Zionite Intel Received 13 | . . . . . . . . . . . . . . . . . . 1 3 . . 7 1 . . . 1 . Branch Access 1 | . . . . . . . . . . . . . . . . . . . . . . . 1 . . . . . Emergency Access 1 | . . . . . . . . . . . . . . . . . . . . . . 1 . . . . . . Component Stockpiles 1 | . . . . . . . . . . . . . . . . . . . . . . 1 . . . . . . Prototype Stockpiles 2 | . . . . . . . . . . . . . . . . . . 1 . . . 1 . . . . . . Component Schematics 2 | . . . . . . . . . . . . . . . . . . . 1 . . 1 . . . . . . Unaware Schematics 2 | . . . . . . . . . . . . . . . . . . . 1 . . 1 . . . . . . Unaware Analyses 2 | . . . . . . . . . . . . . . . . . . . 1 . . 1 . . . . . . Active Terminals 1 | . . . . . . . . . . . . . . . . . . . . . . . . . . . 1 . Active Garrisons 1 | . . . . . . . . . . . . . . . . . . . . . . 1 . . . . . . Exploration | -11 -10 -10 -10 -9 -8 -7 -7 -7 -7 -7 -7 -6 -6 -6 -6 -6 -5 -5 -5 -5 -5 -5 -4 -4 -4 -3 -3 -3 ------------- Run | Yrd Mat Min Exi Min Mat Fac Was Fac Low Low Dat Pro Fac Low Low Zio Pro Fac Ext Cet Arc Hub Fac Upp War Pro Res Arm Turns Passed 15497 | 121 761 595 846 386 1456 1916 235 169 682 284 56 295 547 154 351 1246 838 567 656 210 259 467 256 126 1056 175 663 124 Spaces Moved 12346 | 68 371 322 444 219 561 580 209 76 613 495 97 355 571 253 376 974 415 453 491 85 150 568 389 265 1555 318 887 186 Core 509 | 18 . . . . . 61 82 20 . . . . . . . . . . . . . 141 81 . . . . 106 Treads 2107 | 50 371 322 444 197 412 309 . . . . . . . . . . . . . . . 2 . . . . . . Legs 1570 | . . . . . . . . 18 . . . . . . . 915 415 222 . . . . . . . . . . Wheels 908 | . . . . 22 149 210 127 38 362 . . . . . . . . . . . . . . . . . . . Hover 7246 | . . . . . . . . . 251 495 97 355 571 253 376 59 . 231 491 85 150 425 302 265 1555 318 887 80 Flight 6 | . . . . . . . . . . . . . . . . . . . . . . . 6 . . . . . Fastest Speed 24 | 50 160 160 160 85 85 95 50 50 52 52 52 52 48 55 55 80 120 54 49 54 44 44 24 40 37 37 37 50 Average Speed 89 | 130 160 160 160 152 187 245 84 100 92 52 52 52 50 57 72 117 120 86 50 54 72 52 45 40 43 37 46 57 Slowest Speed 1050 | 160 160 160 160 160 240 1050 130 120 120 52 52 52 58 58 150 120 120 120 54 54 147 250 120 40 108 41 260 150 Overloaded Moves . | . . . . . . . . . . . . . . . . . . . . . . . . . . . . . Propulsion Burnouts . | . . . . . . . . . . . . . . . . . . . . . . . . . . . . . Robots Hopped . | . . . . . . . . . . . . . . . . . . . . . . . . . . . . . Potential Cave-ins . | . . . . . . . . . . . . . . . . . . . . . . . . . . . . . Cave-ins Triggered . | . . . . . . . . . . . . . . . . . . . . . . . . . . . . . Exploration Rate (%) 52 | 4 67 63 83 37 60 17 93 2 66 74 69 55 24 56 49 91 73 11 78 54 86 69 14 41 93 49 28 19 Regions Visited 28 Branch Regions 19 Pre-discovered Areas 7 | . 2 . 1 . . . . . . 1 1 . . . . 1 . . . . . . . . 1 . . . Known Exits Taken 10 | . 1 . . . . . . . . . . . 1 . . 1 1 1 1 1 1 1 1 . . . . . Unknown Exits Taken 16 | 1 . 1 1 1 1 . . 1 1 1 1 1 . 1 1 . . . . . . . . 1 1 1 1 . Scrap Searched 16 | . . 1 . 1 . . . . 2 . . 2 . 1 2 4 3 . . . . . . . . . . . Spaces Dug 78 | . . . . . 9 . 19 . . . . . 1 . 7 . . 14 . . . 3 . . . 2 22 1 Terrain Destroyed 874 | . 9 . . . 91 170 29 . . 1 . . 25 . 13 . 1 30 4 . 28 420 1 . 3 12 32 5 Melee 28 | . . . . . . . . . . . . . 1 . 4 . . 1 . . . . . . . . 21 1 Projectile 87 | . . . . . . . . . . . . . . . 9 . 1 1 . . 28 30 1 . 3 12 2 . AOE 751 | . 9 . . . 91 170 29 . . . . . 22 . . . . 27 . . . 390 . . . . 9 4 Terrain Rammed . | . . . . . . . . . . . . . . . . . . . . . . . . . . . . . Walls Destroyed . | . . . . . . . . . . . . . . . . . . . . . . . . . . . . . Machines Disabled . | . . . . . . . . . . . . . . . . . . . . . . . . . . . . . Actions | -11 -10 -10 -10 -9 -8 -7 -7 -7 -7 -7 -7 -6 -6 -6 -6 -6 -5 -5 -5 -5 -5 -5 -4 -4 -4 -3 -3 -3 --------- Run | Yrd Mat Min Exi Min Mat Fac Was Fac Low Low Dat Pro Fac Low Low Zio Pro Fac Ext Cet Arc Hub Fac Upp War Pro Res Arm Total 15760 | 91 458 396 564 256 869 931 233 166 715 507 102 439 755 257 418 1071 729 582 833 229 225 670 461 284 1926 350 1042 201 Wait 1924 | . 27 57 4 13 167 173 6 77 37 7 . 68 124 . 7 56 298 40 211 124 21 44 29 20 290 . 20 4 Move 12319 | 67 370 321 443 218 560 580 208 75 612 494 96 354 570 252 375 973 414 452 490 84 149 567 388 264 1554 317 886 186 Hop . | . . . . . . . . . . . . . . . . . . . . . . . . . . . . . Pick Up 217 | 12 6 2 2 2 40 29 1 6 12 . . 1 9 . 1 17 1 15 7 2 6 3 5 . 17 . 19 2 Fast Attach 70 | 1 . . . . 1 . 1 5 11 . 3 2 3 2 2 3 . 5 . 1 2 . 11 . 11 5 1 . Attach 136 | 6 . . . 3 11 29 1 3 5 . . . 7 . 1 7 1 9 1 . 1 9 7 . 13 1 17 4 Detach 28 | . . . . . . . 1 . . . . . . . 3 1 . 2 . . . 2 4 . 9 2 3 1 Swap 94 | . 4 3 2 2 12 9 2 . 4 . . 1 2 . 1 7 1 15 8 4 4 5 . . 6 . 2 . Drop 152 | . 5 4 1 3 22 5 . . 17 . 3 2 4 1 5 6 1 20 7 4 7 8 4 . 10 4 7 2 Fire 522 | 5 46 9 16 15 53 106 13 . 7 6 . 11 29 2 8 . 13 23 32 10 35 32 6 . 15 18 11 1 Melee 91 | . . . . . . . . . . . . . 7 . 15 1 . 1 . . . . . . 1 3 62 1 Ram 7 | . . . . . . . . . . . . . . . . . . . . . . . 7 . . . . . Kick . | . . . . . . . . . . . . . . . . . . . . . . . . . . . . . Crush . | . . . . . . . . . . . . . . . . . . . . . . . . . . . . . Escape Stasis 25 | . . . . . . . . . . . . . . . . . . . 12 . . . . . . . 13 . Rewire 170 | . . . 96 . 3 . . . 5 . . . . . . . . . 65 . . . . . . . 1 . Trap . | . . . . . . . . . . . . . . . . . . . . . . . . . . . . . Miscellaneous 5 | . . . . . . . . . 5 . . . . . . . . . . . . . . . . . . . Route ------- -11/Scrapyard -10/Materials (discovered 5 exits: *Mat x3 / *Min / Sub) -10/Mines (discovered 2 exits: Mat / *Exi) -10/Exiles -9/Mines -8/Materials -7/Factory -7/Waste -7/Factory -7/Lower Caves -7/Lower Caves -7/Data Miner -6/Proximity Caves -6/Factory (discovered 2 exits: Fac / *Low) -6/Lower Caves -6/Lower Caves -6/Zion (discovered 2 exits: Dee / *Pro) -5/Proximity Caves -5/Factory (discovered 2 exits: Fac / *Ext) -5/Extension (discovered 3 exits: *Fac x2 / *Cet) -5/Cetus -5/Archives (discovered 3 exits: *Fac / *Hub x2) -5/Hub_04(d) -4/Factory (discovered 2 exits: *Upp x2) -4/Upper Caves -4/Warlord -3/Proximity Caves -3/Research -3/Armory History --------- Turn | Location | Event 9 | -11/Scrapyard | Discovered new exit (range 16) 122 | -11/Scrapyard | Entered Materials 313 | -10/Materials | Build established: Mutant 338 | -10/Materials | Discovered new exit (range 7) 680 | -10/Materials | Learned Storage trap positions 698 | -10/Materials | Identified exit to Materials 698 | -10/Materials | Identified exit to Mines 705 | -10/Materials | Learned 2 Mines zone layouts 716 | -10/Materials | Learned 2 Mines zone layouts 737 | -10/Materials | Identified exit to Subcaves 806 | -10/Materials | Learned 4 Recycling zone layouts 883 | -10/Materials | Entered Mines 938 | -10/Mines | Received a Rocket Launcher from a helpful Derelict 942 | -10/Mines | Met a Derelict bent on vengeance 985 | -10/Mines | Found the Drone Emporium 994 | -10/Mines | Found Prototype Device 1263 | -10/Mines | Received a Mining Laser from a helpful Derelict 1472 | -10/Mines | Deemed a non-threat by the Exiles lab entrance 1472 | -10/Mines | Discovered new exit (range 5) 1478 | -10/Mines | Entered Exiles 1478 | -10/Exiles | Found Exiles lab destroyed 1478 | -10/Exiles | Accompanied by 1 ally 1801 | -10/Exiles | Learned location of Zion (-6) 1984 | -10/Exiles | Opened EX-Vault 1996 | -10/Exiles | Found Supersonic Drone Bay 2110 | -10/Exiles | Build established: Commander-Mutant 2301 | -10/Exiles | Discovered new exit (range 14) 2324 | -10/Exiles | Entered Mines 2324 | -9/Mines | Accompanied by 4 allies 2381 | -9/Mines | Lost 4 allies 2539 | -9/Mines | Discovered new exit (range 7) 2594 | -9/Mines | Assisted by bots powering up and referring to "LRC-V3" 2651 | -9/Mines | Assembled infested the area 2656 | -9/Mines | Assisted by a Guerilla fighting off Assembled 2670 | -9/Mines | Core integrity fell below 50% 2687 | -9/Mines | Core integrity fell below 20% 2701 | -9/Mines | Lost 3 allies 2710 | -9/Mines | Entered Materials 2710 | -8/Materials | Evolved 4 slots: Propulsion x1, Utility x2, Weapon x1 2723 | -8/Materials | Lost 5 parts (1p2n2w) 3384 | -8/Materials | Build established: Scavenger-Gunner 4140 | -8/Materials | Discovered new exit (range 8) 4142 | -8/Materials | Garrison activated, responded to threat 4166 | -8/Materials | Entered Factory 4166 | -7/Factory | Evolved 2 slots: Utility x2 4321 | -7/Factory | Lost 3 parts (1n1u1w) 4606 | -7/Factory | Build established: Gunner 4910 | -7/Factory | Lost 4 parts (2n1u1w) 5275 | -7/Factory | Lost 4 parts (2u2w) 5526 | -7/Factory | Build established: Mutant 5821 | -7/Factory | Identified Decoy Drone Bay 5870 | -7/Factory | Lost 7 parts (2n3u2w) 5889 | -7/Factory | Lost 4 allies 5908 | -7/Factory | Core integrity fell below 50% 5938 | -7/Factory | Lost 3 parts (1n1u1w) 5960 | -7/Factory | System corruption reached 10% 6082 | -7/Factory | Sucked down chute 6082 | -7/Factory | Entered Waste 6116 | -7/Waste | Spotted C-40 Crusher 6147 | -7/Waste | Destroyed C-40 Crusher 6153 | -7/Waste | Found Damper Plating 6168 | -7/Waste | Spotted C-40 Crusher 6172 | -7/Waste | Spotted C-40 Crusher 6195 | -7/Waste | Spotted C-40 Crusher 6205 | -7/Waste | Destroyed C-40 Crusher 6213 | -7/Waste | Crushed by Compactor (1 part destroyed, 2 dropped) 6224 | -7/Waste | Spotted C-40 Crusher 6232 | -7/Waste | Crushed by Compactor (1 part destroyed, 1 dropped) 6249 | -7/Waste | Crushed by Compactor (1 part destroyed, 1 dropped) 6266 | -7/Waste | Spotted C-40 Crusher 6273 | -7/Waste | Crushed by Compactor (1 part destroyed, 2 dropped) 6304 | -7/Waste | Lost 5 parts (2n2u1w) 6306 | -7/Waste | Discovered new exit (range 16) 6317 | -7/Waste | Entered Factory 6344 | -7/Factory | Discovered new exit (range 11) 6486 | -7/Factory | Entered Lower Caves 6586 | -7/Lower Caves | Activated DRS Beacon 6630 | -7/Lower Caves | Build established: Tank 6970 | -7/Lower Caves | Learned Armory garrison access intel 6970 | -7/Lower Caves | Learned Armory emergency access door positions 6970 | -7/Lower Caves | Learned Factory trap positions 6993 | -7/Lower Caves | Lost 3 allies 7116 | -7/Lower Caves | Encountered a Warlord checkpoint 7116 | -7/Lower Caves | Learned Factory trap positions 7119 | -7/Lower Caves | Discovered new exit (range 8) 7123 | -7/Lower Caves | Learned Factory garrison access intel 7168 | -7/Lower Caves | Entered another Lower Caves area 7205 | -7/Lower Caves | Entered an active Warlord outpost 7214 | -7/Lower Caves | Learned Factory trap positions 7214 | -7/Lower Caves | Learned Factory emergency access door positions 7280 | -7/Lower Caves | Build established: Scavenger-Gunner 7334 | -7/Lower Caves | Learned 8 Factory zone layouts 7426 | -7/Lower Caves | Discovered new exit (range 9) 7452 | -7/Lower Caves | Entered Data Miner 7454 | -7/Data Miner | Discovered new exit (range 6) 7464 | -7/Data Miner | Met Data Miner 7475 | -7/Data Miner | Learned location of Section 7 (-3) 7475 | -7/Data Miner | Acquired the access code to Warlord's prototype stash 7483 | -7/Data Miner | Received God Mode back door access code from Data Miner 7508 | -7/Data Miner | Entered Proximity Caves 7566 | -6/Proximity Caves | Escorted by Enhanced Grunt 7653 | -6/Proximity Caves | Spotter reported a threat 7717 | -6/Proximity Caves | Spotter reported a threat 7767 | -6/Proximity Caves | Spotter reported a threat 7796 | -6/Proximity Caves | Discovered new exit (range 10) 7803 | -6/Proximity Caves | Entered Factory 7803 | -6/Factory | Evolved 2 slots: Power x1, Propulsion x1 7804 | -6/Factory | Identified exit to Lower Caves 7804 | -6/Factory | Identified exit to Factory 7805 | -6/Factory | Loaded intel: 119 trap records 7807 | -6/Factory | Loaded intel: 4 garrison access locations 8046 | -6/Factory | Fabricated M-28 Smith (x1) 8257 | -6/Factory | Fabricated Biometal Leg? 8268 | -6/Factory | Lost 6 parts (3n3w) 8350 | -6/Factory | Entered Lower Caves 8429 | -6/Lower Caves | Encountered a Warlord checkpoint 8457 | -6/Lower Caves | Found DCF Scrap (13 items) 8498 | -6/Lower Caves | Discovered new exit (range 7) 8504 | -6/Lower Caves | Entered another Lower Caves area 8672 | -6/Lower Caves | Spotted B-75 Beast 8854 | -6/Lower Caves | Discovered new exit (range 3) 8855 | -6/Lower Caves | Entered Zion 8898 | -6/Zion | Discovered new exit (range 14) 8931 | -6/Zion | Visited the Megawrench Repair Shop 9032 | -6/Zion | Learned Factory trap positions 9109 | -6/Zion | Learned 8 Factory zone layouts 9188 | -6/Zion | Acquired unknown access codes intercepted by a Zionite 9192 | -6/Zion | Learned location of Warlord (-4) 9241 | -6/Zion | Identified exit to Deep Caves 9270 | -6/Zion | Given the Hacking Drone Bay 9270 | -6/Zion | Found Prototype Device 9286 | -6/Zion | Identified Hacking Drone Bay 9304 | -6/Zion | Met Imprinter 9322 | -6/Zion | Imprinted 9324 | -6/Zion | Declared Zion's savior 9423 | -6/Zion | Build established: Scavenger-Assassin 9632 | -6/Zion | Found Prototype Device 9852 | -6/Zion | Identified Mobile Refinery Mk. CCLXVII 9866 | -6/Zion | Found Prototype Processor 9871 | -6/Zion | Found Prototype Processor 9873 | -6/Zion | Found Prototype Processor 10044 | -6/Zion | Identified exit to Proximity Caves 10101 | -6/Zion | Entered Proximity Caves 10101 | -5/Proximity Caves | Accompanied by 4 allies 10103 | -5/Proximity Caves | Spotter reported a threat 10126 | -5/Proximity Caves | Build established: Derelict-Assassin 10189 | -5/Proximity Caves | Learned Factory terminal intel 10586 | -5/Proximity Caves | Received a Behemoth hack from an annoying Tinkerer 10808 | -5/Proximity Caves | Attracted the attention of an 0b10 checkpoint 10878 | -5/Proximity Caves | Discovered exit to Factory (range 6) 10939 | -5/Proximity Caves | Entered Factory 10939 | -5/Factory | Accompanied by 4 allies 10939 | -5/Factory | Evolved 2 slots: Propulsion x1, Utility x1 10940 | -5/Factory | Identified exit to Factory 10941 | -5/Factory | Loaded intel: 128 trap records 10942 | -5/Factory | Loaded intel: 27 terminal locations 11103 | -5/Factory | Garrison activated, responded to threat 11176 | -5/Factory | Retrieved Zion intel report: Prototype Stockpiles 11177 | -5/Factory | Zion Light squad teleported in 11287 | -5/Factory | Lost 4 allies 11297 | -5/Factory | Identified Exp. Core Analyzer 11299 | -5/Factory | Identified Exp. Signal Interpreter 11300 | -5/Factory | Identified Exp. Armor Integrity Analyzer 11330 | -5/Factory | Discovered new exit (range 13) 11370 | -5/Factory | Zion Fire squad teleported in 11473 | -5/Factory | Identified exit to Extension 11506 | -5/Factory | Entered Extension 11506 | -5/Extension | Accompanied by 5 allies 11523 | -5/Extension | Rescued a captive Derelict 11531 | -5/Extension | Energy Cycler disabled 11531 | -5/Extension | Rescued a captive Derelict 11533 | -5/Extension | Rescued a captive Derelict 11533 | -5/Extension | Rescued a captive Derelict 11534 | -5/Extension | Rescued a captive Derelict 11542 | -5/Extension | Zion Light squad teleported in 11545 | -5/Extension | Rescued a captive Derelict 11652 | -5/Extension | Retrieved Zion intel report: Unaware Analyses 11655 | -5/Extension | Retrieved Zion intel report: Component Schematics 11656 | -5/Extension | Zion Demo squad teleported in 11692 | -5/Extension | Discovered exit to Factory (range 19) 11704 | -5/Extension | Extracted ID and sensor layout for unrecognized location from A7's data core 11731 | -5/Extension | Disrupted transfer network 11739 | -5/Extension | Build established: Messiah-Scout 11851 | -5/Extension | Retrieved Zion intel report: Unaware Schematics 11852 | -5/Extension | Zion Explosive Resupply teleported in 11917 | -5/Extension | Lost 5 allies 12054 | -5/Extension | Found Prototype Launcher 12055 | -5/Extension | Identified Rocket Array 12059 | -5/Extension | Found Prototype Launcher 12060 | -5/Extension | Identified Scatter Rocket Array 12075 | -5/Extension | Discovered exit to Factory (range 10) 12075 | -5/Extension | Discovered new exit (range 6) 12114 | -5/Extension | Identified exit to Cetus 12162 | -5/Extension | Entered Cetus 12162 | -5/Cetus | Accompanied by 13 allies 12169 | -5/Cetus | Spotted Cetus Guard 12169 | -5/Cetus | Spotted Cetus Guard 12172 | -5/Cetus | Spotted Cetus Guard 12173 | -5/Cetus | Spotted Cetus Guard 12176 | -5/Cetus | Allies destroyed Cetus Guard 12181 | -5/Cetus | Destroyed Cetus Guard 12188 | -5/Cetus | Allies destroyed Cetus Guard 12194 | -5/Cetus | Build established: Commander-Scout 12197 | -5/Cetus | Destroyed Cetus Guard 12226 | -5/Cetus | Lost 3 allies 12237 | -5/Cetus | Discovered new exit (range 21) 12316 | -5/Cetus | Identified exit to Archives 12372 | -5/Cetus | Entered Archives 12372 | -5/Archives | Accompanied by 9 allies 12460 | -5/Archives | Lost 6 allies 12463 | -5/Archives | Discovered exit to Factory (range 14) 12492 | -5/Archives | Discovered new exit (range 14) 12533 | -5/Archives | Discovered new exit (range 20) 12610 | -5/Archives | Identified exit to Hub_04(d) 12631 | -5/Archives | Entered Hub_04(d) 12631 | -5/Hub_04(d) | Accompanied by 3 allies 12665 | -5/Hub_04(d) | Zion Light squad teleported in 12689 | -5/Hub_04(d) | Discovered exit to Factory (range 12) 12756 | -5/Hub_04(d) | Retrieved Zion intel report: Emergency Access 12764 | -5/Hub_04(d) | Retrieved Zion intel report: Prototype Stockpiles 12769 | -5/Hub_04(d) | Retrieved Zion intel report: Component Stockpiles 12776 | -5/Hub_04(d) | Retrieved Zion intel report: Active Garrisons 12785 | -5/Hub_04(d) | Retrieved Zion intel report: Unaware Analyses 12838 | -5/Hub_04(d) | Retrieved Zion intel report: Unaware Schematics 12863 | -5/Hub_04(d) | Garrison activated, responded to threat 12909 | -5/Hub_04(d) | Retrieved Zion intel report: Component Schematics 12922 | -5/Hub_04(d) | Network Hub disabled 12922 | -5/Hub_04(d) | Spotted B-75 Beast 12922 | -5/Hub_04(d) | Network Hub disabled 12931 | -5/Hub_04(d) | First assault squad dispatched 12956 | -5/Hub_04(d) | Incoming assault squad redirected 12960 | -5/Hub_04(d) | Lost 7 parts (1p3n1u2w) 12990 | -5/Hub_04(d) | Spotted Lightning 12990 | -5/Hub_04(d) | Spotted Lightning 12992 | -5/Hub_04(d) | Spotted Lightning 13017 | -5/Hub_04(d) | System corruption reached 10% 13018 | -5/Hub_04(d) | Core integrity fell below 50% 13022 | -5/Hub_04(d) | Destroyed Lightning 13024 | -5/Hub_04(d) | Incoming investigation squad redirected 13031 | -5/Hub_04(d) | Core integrity fell below 20% 13060 | -5/Hub_04(d) | Lost 8 parts (3n2u3w) 13098 | -5/Hub_04(d) | Entered Factory 13098 | -4/Factory | Evolved 2 slots: Propulsion x1, Weapon x1 13099 | -4/Factory | Loaded intel: 91 trap records 13170 | -4/Factory | Zion Heavy squad teleported in 13172 | -4/Factory | Found Quantum Capacitor 13223 | -4/Factory | Spotted B-86 Titan 13240 | -4/Factory | Fabricated Particle Reactor? 13277 | -4/Factory | Garrison activated, responded to threat 13325 | -4/Factory | Spotted B-86 Titan 13327 | -4/Factory | Retrieved Zion intel report: Branch Access 13327 | -4/Factory | Identified exit to Upper Caves 13328 | -4/Factory | Zion Light squad teleported in 13332 | -4/Factory | Zion Light squad teleported in 13354 | -4/Factory | Entered Upper Caves 13354 | -4/Upper Caves | Accompanied by 1 ally 13360 | -4/Upper Caves | Lost 11 parts (1p5n4u1w) 13378 | -4/Upper Caves | Lost 3 allies 13468 | -4/Upper Caves | Encountered a Warlord checkpoint 13472 | -4/Upper Caves | A Derelict revealed a hidden shortcut to "reach the base" 13480 | -4/Upper Caves | Entered Warlord 13480 | -4/Warlord | Accompanied by 1 ally 13495 | -4/Warlord | System corruption cleaned by Quarantine Array 13544 | -4/Warlord | Build established: Mutant 13708 | -4/Warlord | Warlord's base attacked by MAIN.C 13737 | -4/Warlord | Learned Factory scanalyzer intel 13737 | -4/Warlord | Learned Research fabricator intel 13737 | -4/Warlord | Learned Research scanalyzer intel 13737 | -4/Warlord | Learned 4 Armory zone layouts 13737 | -4/Warlord | Learned 4 Access zone layouts 13737 | -4/Warlord | Learned 4 Command zone layouts 13739 | -4/Warlord | Learned location of Armory (-3) 13739 | -4/Warlord | Learned Quarantine stockpile data 13753 | -4/Warlord | Opened Warlord's prototype stash 13763 | -4/Warlord | Found Prototype Reactor 13766 | -4/Warlord | Found Prototype Device 13771 | -4/Warlord | Found Prototype Device 13775 | -4/Warlord | Found Exp. Armor Integrity Analyzer 13776 | -4/Warlord | Identified Exp. Cloaking Device 13777 | -4/Warlord | Identified Exp. Focal Shield 13815 | -4/Warlord | Rebuked by Warlord 13837 | -4/Warlord | Found Prototype Energy Cannon 13839 | -4/Warlord | Found Prototype Energy Cannon 13840 | -4/Warlord | Identified Vortex Driver (x2) 14058 | -4/Warlord | Warlord forces counterattacked 14109 | -4/Warlord | Spotted Executioner 14145 | -4/Warlord | Spotted Striker 14146 | -4/Warlord | Spotted Executioner 14189 | -4/Warlord | Spotted Executioner 14236 | -4/Warlord | Lost 30 allies 14383 | -4/Warlord | Warlord base infiltrated, sounded retreat 14384 | -4/Warlord | Enhanced Grunt warped into view 14384 | -4/Warlord | Enhanced Grunt warped into view 14384 | -4/Warlord | Enhanced Grunt warped into view 14384 | -4/Warlord | Enhanced Demolisher warped into view 14384 | -4/Warlord | Enhanced Demolisher warped into view 14384 | -4/Warlord | Enhanced Demolisher warped into view 14410 | -4/Warlord | Build established: Scavenger-Mutant 14441 | -4/Warlord | Spotted Striker 14480 | -4/Warlord | Spotted Executioner 14499 | -4/Warlord | Spotted Striker 14509 | -4/Warlord | Spotted Striker 14515 | -4/Warlord | Spotted Executioner 14526 | -4/Warlord | P-70 Sage assimilated allied UG-QXO(l) 14528 | -4/Warlord | Spotted Executioner 14529 | -4/Warlord | Spotted Executioner 14531 | -4/Warlord | Discovered new exit (range 15) 14536 | -4/Warlord | Entered Proximity Caves 14538 | -3/Proximity Caves | Spotter reported a threat 14539 | -3/Proximity Caves | Spotter reported a threat 14562 | -3/Proximity Caves | Lost 11 allies 14562 | -3/Proximity Caves | Spotted B-86 Titan 14592 | -3/Proximity Caves | Spotter reported a threat 14619 | -3/Proximity Caves | Destroyed B-86 Titan 14706 | -3/Proximity Caves | Discovered new exit (range 14) 14711 | -3/Proximity Caves | Entered Research 14711 | -3/Research | Evolved 2 slots: Utility x2 14712 | -3/Research | Loaded intel: 3 fabricator locations 14713 | -3/Research | Loaded intel: 6 scanalyzer locations 14942 | -3/Research | Lost 8 parts (2p3n2u1w) 14961 | -3/Research | Search patrols dispatched 15065 | -3/Research | Zion Heavy squad teleported in 15082 | -3/Research | Found Prototype Launcher 15089 | -3/Research | Identified Mni. Smartbomb Launcher 15211 | -3/Research | Search patrols dispatched 15220 | -3/Research | Retrieved Zion intel report: Active Terminals 15221 | -3/Research | Zion Fire squad teleported in 15238 | -3/Research | P-80 Master assimilated allied G7-2EO(i) 15277 | -3/Research | Zion Demo squad teleported in 15366 | -3/Research | Discovered new exit (range 16) 15374 | -3/Research | Entered Armory 15411 | -3/Armory | Zion Hacker squad teleported in 15413 | -3/Armory | Core integrity fell below 50% 15455 | -3/Armory | Zion Light squad teleported in 15458 | -3/Armory | Lost 3 allies 15463 | -3/Armory | Lost 12 parts (2p4n5u1w) 15467 | -3/Armory | Energy Cycler disabled 15480 | -3/Armory | Core integrity fell below 20% 15498 | -3/Armory | Destroyed by S-43 Plague with Heavy Machine Gun Last Messages --------------- [ 3 : CY-ATY(i)/Fire(4) ] [ 4 : Melee Resupply ] >>\\ZION-INTEL [ Establishing connection... ] [ Retrieving vulnerable data list... ] [ 1 : Emergency Access ] [ 2 : Component Stockpiles ] [ 3 : Active Garrisons ] [ 4 : Unaware Analyses ] >>\\ZION-DISPATCH-1 [ Target locked, reinforcements inbound... ] 15455_ UR-SO9(z): "For Derelicts everywhere!" 15467_ ALERT: Power surge detected, dispatching additional patrols. 15468_ UR-SO9(z) destroyed. 15478_ VWDF %Y,ZABNC>KU9C7O2C7T9I1QYJGTEJ 15479_ Thermoblaster destroyed. 15480_ Triggered Blade Trap. 15480_ Massive razor-sharp blades shoot up from within the floor. 15480_ Exp. Focal Shield severed. 15491_ S-43 Plague suffers critical hit (Destroy). Map ----- +----------------------------------------------------+ | ????????????????? #????????????????????????????? | | ????????????????? #????????????????????????????# | | ?????????????????" #????????????????????????????" | | ?????????????????"" #????????????????????????????" | | ????????????????? #????????????????????????????" | | ????????????????? #????????????????????????????" | | ????????????????? #???????????????????????????#" | | ????????????????? #???????????????????????????## | | ?????????????????????????????????????????????????? | | ?????????????????????????????????????????????????? | | ?????????????????????????????????????????????????? | | ?????????????????????????????????????????????????? | | ?????????????????????????????????????????????????? | | ?????????????????????????????????????????????????? | | ?????????????????????????????????????????????????? | | ?????????????????????????????????????????????????? | | ??????????????????????#######????????????????????? | | ??????????????????????# """ #????????????????????? | | ??????????????????????#""F""#????????????????????? | | ????????????????#######"" ""###################### | | ????????????????+ w sss s # / | | ????????????????# """ """s"""l""" # ////// ##### | | ????????????????# """ """ """ """ s ////// #???# | | ????????????????# """ """ """ """s# #???# | | ????????????????+ w l l ######+####???# | | ????????????????# i @ +???????????? | | ????????????????#= ] #???????????### | | ????????????????#########+######+##?????????????# | | ???????????????????????????????? ??????????????# | | ?????????????????????????????????? ?????????????# | | ??????????????????????????????????? ????????????# | | ????????????????????????????????????????????????# | | ???????????????????????????????????????????????? | | ????????????????????????????????????????????????## | | ?????????????????????????????????????????????????? | | ?????????????????????????????????????????????????? | | ?????????????????????????????????????????????????? | | ???????+?????????????????????????????????????????? | | ?????????????????????????????????????????????????? | | ?????????????????????????????????????????????????? | | ?????????????????????????????????????????????????? | | ?????????????????????????????????????????????????? | | ?????????????????????????????????????????????????? | | ?????????????????????????????????????????????????? | | ?????????????????????????????????????????????????? | | ?????????????????????????????????????????????????? | | ?????????????????????????????????????????????????? | | ?????????????????????????????????????????????????? | | ?????????????????????????????????????????????????? | | ?????????????????????????????????????????????????? | +----------------------------------------------------+ Best States ------------- Heat Dissipation 72 Coolant Potential 120 Energy Generation 55 Energy Capacity 725 Matter Stores 300 Matter Capacity 300 Sight Range 22 Robot Scan Range 16 Terrain Scan Density 210 Cloak Strength 4 Armor Coverage 1600 Resistance: KI 30 Resistance: EM 90 Evasion (%) 59 Targeting Accuracy 8 Target Analysis 9 Core Analysis 6 Armor Integrity Analysis 50 Recoil Reduction 6 Particle Charging 15 Salvage Targeting 4 Offensive Hacking 14 Item Schematics ----------------- Combat Drone Bay | -7/Data Miner | Free Lgt. Regenerative Plating | -7/Data Miner | Free Cld. Cesium-ion Thruster | -7/Data Miner | Free Exp. Targeting Computer | -7/Data Miner | Free Imp. Heavy Machine Gun | -7/Data Miner | Free Antigrav System | -7/Data Miner | Free Imp. Shock Absorption System | -7/Data Miner | Free Tesla Rifle | -7/Data Miner | Free EM Shield | -7/Data Miner | Free Hyp. Coil Gun | -7/Data Miner | Free Mass Driver | -7/Data Miner | Free Antimatter Reactor | -7/Data Miner | Free Force Lance | -7/Data Miner | Free Phase Cannon | -6/Zion | Archive Variable Charge Gun | -6/Zion | Archive Imp. Reaction Control System | -6/Zion | Archive Imp. Thermal Shield | -6/Zion | Archive Imp. Force Field | -6/Zion | Archive Hvy. Plasma Cannon | -6/Zion | Archive Adv. System Shield | -6/Zion | Archive Proton Cannon | -6/Zion | Archive Imp. Weapon Cycler | -6/Zion | Archive Drone Bay | -6/Zion | Archive Imp. Plasma Cutter | -6/Zion | Archive Adv. Sensor Array | -6/Zion | Archive Hvy. Phase Cannon | -6/Zion | Archive Imp. Proton Missile Launcher | -6/Zion | Archive Myomer Leg | -6/Zion | Archive Imp. Focal Shield | -5/Extension | Z-intel Core Analyzer | -5/Extension | Z-intel Hrd. Light Armor Plating | -5/Extension | Z-intel Imp. Target Analyzer | -5/Extension | Z-intel Melee Analysis Suite | -5/Extension | Z-intel Imp. Arc Projector | -5/Extension | Z-intel Thermal Shield | -5/Extension | Z-intel Lrg. Storage Unit | -5/Extension | Z-intel Neutrino Core | -5/Extension | Z-intel Imp. Component Analysis Suite | -5/Extension | Z-intel Adv. Drone Bay | -5/Extension | Z-intel Adv. Weight Redist. System | -5/Extension | Z-intel Hvy. Flail | -5/Extension | Z-intel Cmb. Gravmag System | -5/Extension | Z-intel Plasma Rifle | -5/Extension | Z-intel Hvy. Mass Driver | -5/Extension | Z-intel Shock Absorption System | -5/Hub_04(d) | Z-intel Imp. Heavy Armor Plating | -5/Hub_04(d) | Z-intel Hacking Suite | -5/Hub_04(d) | Z-intel Adv. Salvage Targeting Computer | -5/Hub_04(d) | Z-intel Force Booster | -5/Hub_04(d) | Z-intel Adv. Hacking Suite | -5/Hub_04(d) | Z-intel Arm. Leg | -5/Hub_04(d) | Z-intel Imp. Salvage Targeting Computer | -5/Hub_04(d) | Z-intel Adv. Melee Analysis Suite | -5/Hub_04(d) | Z-intel EM Disruption Field | -5/Hub_04(d) | Z-intel Datajack | -5/Hub_04(d) | Z-intel Transport Network Coupler | -5/Hub_04(d) | Z-intel Imp. Terrain Scanner | -5/Hub_04(d) | Z-intel Gravmag Array | -5/Hub_04(d) | Z-intel Robot Schematics ------------------ A-15 Conveyor | -7/Data Miner | Free H-55 Commando | -7/Data Miner | Free H-66 Slayer | -7/Data Miner | Free R-10 Processor | -7/Data Miner | Free R-06 Scavenger | -6/Zion | Archive B-48 Gladiator | -6/Zion | Archive H-77 Assassin | -6/Zion | Archive E-15 Imp | -5/Extension | Z-intel B-60 Warrior | -5/Extension | Z-intel C-35 Carver | -5/Extension | Z-intel G-50 Soldier | -5/Hub_04(d) | Z-intel M-22 Extractor | -5/Hub_04(d) | Z-intel S-27 Virus | -5/Hub_04(d) | Z-intel Fabricated ------------ M-28 Smith | x1 | -6/Factory | Preloaded Biometal Leg | x2 | -6/Factory | Preloaded Particle Reactor | x2 | -4/Factory | Preloaded Repaired ---------- Nothing Studied --------- Lgt. EM Pulse Cannon | -8/Materials | Hacked EM Pulse Cannon | -8/Materials | Hacked Lgt. Treads | -7/Factory | Hacked Mic. Nuclear Core | -7/Factory | Hacked Alien Tech Used ----------------- None Achievements -------------- Look Less Dangerous Next Time Luggage Code Physics Hates This One Trick Suspicious Challenges ------------ None Game ------ Seed ThermicAssaultStabilizer Manual? 0 Play Time 02:30:46 Cumulative 427.3 hours Start 2025.10.26 @ 05:52:50 End 2025.10.26 @ 08:25:22 Sessions 2 Manual Loads 0 Difficulty Rogue Special Mode None Game No. 554 Rogue 554 Adventurer 0 Explorer 0 Win Type - Total 12 Types 6/0/1/2/1/0/2/0/0/0 Lore% 89 Gallery% 84 Achievement% 54 Wizard Run 0 Options --------- Layout 0 ASCII 0 Keyboard 0 Movement Mouse Keybinds 0 Fullscreen 1 Font 24/Terminus Map View 76x50 Zoom Use 0% Tactical HUD 1 Map Filters NONE Filters NONE Steam 1 RUN: 2c70bf54-f52e-43a5-90ee-02aaa6bcf9d0